Cogmind - Beta 12 X1 @@@ ROGUE MODE // 2022.07.18 @ 16:10:50 Player: Momo Result: Destroyed by P-70 Sage with Tesla Rifle Performance ------------- Evolutions (5) 2500 Regions Visited (16) 3200 Robots Destroyed (119) 595 Value Destroyed (7023) 7023 Prototype IDs (8) 160 Alien Tech Used (0) 0 Bonus (5877) 5877 TOTAL SCORE: 19355 Bonus ------- High Alert Combat Kills 594 Follower Combat Kills 2280 Entered Garrisons 800 Used RIF Installer 2500 Aligned with FarCom 300 Friendly Fire -597 Cogmind --------- Core Integrity 0/1000 Matter 275/300 Energy 92/100 System Corruption 1% Temperature Critical (568) Movement Core (50) Location -5/Factory Parts ------- > --- POWER (1) -------- (None) > --- PROPULSION (4) --- (None) > --- UTILITY (10) ----- (None) > --- WEAPON (2) ------- (None) > --- INVENTORY (5) ---- Huge Storage Unit Relay Coupler [NC] (28) Relay Coupler [Grunt] (29) Relay Coupler [Specialist] (20) Heavy Gauss Cannon Peak State ------------ > --- POWER ------------ Light Fission Core > --- PROPULSION ------- Improved Heavy Treads Armored Heavy Treads > --- UTILITY ---------- Advanced Cryofiber Web Huge Storage Unit Advanced Targeting Computer Kinecellerator Advanced Transmission Jammer Layered Heavy Armor Plating Graphene Brace Improved System Shield Improved Dynamic Insulation System > --- WEAPON ----------- Hardcell Cannon Heavy Gauss Cannon > --- INVENTORY -------- Improved Launcher Guidance Computer Relay Coupler [NC] Relay Coupler [NC] Relay Coupler [NC] Relay Coupler [NC] Relay Coupler [Swarmer] Relay Coupler [Swarmer] Relay Coupler [Grunt] Relay Coupler [Grunt] Relay Coupler [Grunt] Relay Coupler [Grunt] Relay Coupler [Grunt] Relay Coupler [Sentry] Relay Coupler [Sentry] Relay Coupler [Sentry] Relay Coupler [Sentry] Relay Coupler [Demolisher] Relay Coupler [Specialist] Relay Coupler [Hunter] Relay Coupler [Hunter] Relay Coupler [Heavy] Relay Coupler [Behemoth] Gauss Rifle [Rating: 109] Favorites ----------- Power Light Angular Momentum Engine Engine Light Angular Momentum Engine Power Core Reinforced Fission Core Propulsion Improved Heavy Treads Treads Improved Heavy Treads Wheel Armored Wheel Flight Unit Flight Unit Utility High-capacity Storage Unit Device Advanced Transmission Jammer Storage High-capacity Storage Unit Processor Advanced Targeting Computer Hackware System Shield Protection Hardened Medium Armor Plating Weapon Flak Cannon Energy Gun Cooled Pulse Rifle Energy Cannon Beam Cannon Ballistic Gun Gauss Rifle Ballistic Cannon Flak Cannon Launcher Improved Grenade Launcher Special Weapon Remote Datajack Impact Weapon Heavy Flail Slashing Weapon Scythe Special Melee Weapon Improved Datajack Build | -11 -10 -10 -9 -9 -9 -8 -8 -8 -8 -8 -7 -7 -7 -6 -6 -5 ------- Run | Scr Mat Min Mat Min Exi Min Mat Gar Mat Gar Fac Sto Gar Fac Gar Fac Slots Evolved 10 | . . . 2 . . . 2 . . . 2 . . 2 . 2 Power . | . . . . . . . . . . . . . . . . . Propulsion 2 | . . . 1 . . . . . . . 1 . . . . . Utility 8 | . . . 1 . . . 2 . . . 1 . . 2 . 2 Weapon . | . . . . . . . . . . . . . . . . . Parts Attached 153 | 5 4 13 5 3 . . 16 9 11 17 18 3 26 3 15 5 Power 16 | 1 1 2 . 1 . . 1 2 2 1 . 1 1 . 1 2 Engine 11 | 1 1 2 . 1 . . 1 2 1 1 . . . . 1 . Core 5 | . . . . . . . . . 1 . . 1 1 . . 2 Reactor . | . . . . . . . . . . . . . . . . . Propulsion 22 | 2 1 4 1 . . . 5 1 2 . 3 1 2 . . . Treads 12 | . . 2 1 . . . . 1 2 . 3 1 2 . . . Leg . | . . . . . . . . . . . . . . . . . Wheel 8 | 2 1 . . . . . 5 . . . . . . . . . Hover . | . . . . . . . . . . . . . . . . . Flight 2 | . . 2 . . . . . . . . . . . . . . Utility 63 | . . 3 2 1 . . 7 2 3 11 8 1 14 2 7 2 Device 22 | . . 2 . . . . 4 1 2 . 1 . 6 1 4 1 Storage 2 | . . . 1 . . . . . . . 1 . . . . . Processor 2 | . . 1 . . . . . . . 1 . . . . . . Hackware 21 | . . . . . . . 1 . 1 4 5 1 5 1 2 1 Protection 16 | . . . 1 1 . . 2 1 . 6 1 . 3 . 1 . Artifact . | . . . . . . . . . . . . . . . . . Weapon 52 | 2 2 4 2 1 . . 3 4 4 5 7 . 9 1 7 1 Energy Gun 8 | 1 . 1 . . . . 2 1 3 . . . . . . . Energy Cannon 1 | . . 1 . . . . . . . . . . . . . . Ballistic Gun 3 | 1 . . . . . . . . . . . . . . 2 . Ballistic Cannon 19 | . . 2 1 . . . . . 1 2 4 . 4 1 3 1 Launcher 4 | . . . 1 . . . . 3 . . . . . . . . Special Weapon 11 | . 2 . . 1 . . . . . . 2 . 4 . 2 . Impact Weapon 2 | . . . . . . . . . . 1 . . 1 . . . Slashing Weapon 1 | . . . . . . . 1 . . . . . . . . . Piercing Weapon . | . . . . . . . . . . . . . . . . . Special Melee Weapon 3 | . . . . . . . . . . 2 1 . . . . . Unidentified Prototypes 6 | . . . . . 1 . 2 1 1 . 1 . . . . . Parts Lost 35 | . 2 5 . 5 . . 5 2 5 4 6 . . . 1 . Power 5 | . . 1 . 1 . . 1 . 1 . 1 . . . . . Propulsion 11 | . 1 2 . . . . 4 . 2 . 2 . . . . . Utility 8 | . . . . 2 . . . 1 1 2 2 . . . . . Weapon 11 | . 1 2 . 2 . . . 1 1 2 1 . . . 1 . Highest Loss Streak 6 | . 2 5 . 5 . . 2 1 2 3 6 . . . 1 . To Critical Strikes . | . . . . . . . . . . . . . . . . . Average Slot Usage (%) 83 | . 63 77 97 94 77 77 92 87 78 87 85 76 84 79 78 80 Engine 6 | . 14 13 11 10 11 11 8 9 2 7 6 . . . 5 4 Core 1 | . . . . . . . . . 5 1 . 1 7 6 . . Treads 16 | . . 13 30 33 33 33 9 8 9 18 20 13 17 13 13 11 Wheel 3 | . 26 4 . . . . 13 9 3 . . . . . . . Device 10 | . . 10 7 . . . 17 11 14 1 1 . 8 17 20 29 Storage 7 | . . . 10 11 11 11 9 9 9 9 7 7 7 6 6 5 Processor 8 | . . 5 11 11 11 11 9 9 9 10 7 7 7 6 6 5 Hackware 6 | . . . . . . . . 4 5 10 14 30 17 14 5 3 Protection 5 | . . . 3 8 . . 8 9 2 13 10 . 1 . 5 5 Energy Gun 2 | . 4 2 . . . . 14 1 9 4 . . . . . . Ballistic Cannon 6 | . . 13 20 17 . . . . 2 7 6 7 8 6 8 5 Special Weapon 2 | . 4 2 . 2 11 11 . . . . 1 7 2 5 1 . Slashing Weapon 1 | . . . . . . . 3 9 4 . . . . . . . Naked Turns 8 | . . . . . . . . . . . . . . . . 8 Heaviest Build 139 | 5 5 19 60 60 47 47 68 74 77 75 111 92 128 129 138 139 Greatest Support 135 | 32 32 42 62 62 62 62 68 87 95 95 123 97 135 135 135 135 Greatest Overweight (x) 6 | . . 2 1 . . . 6 3 6 . . 1 1 . 1 1 Average Overweight (x) . | . . . . . . . 2 . . . . . . . . . Largest Inventory Capacity 25 | 5 5 5 20 20 20 20 20 20 20 20 25 25 25 25 25 25 Average Capacity 20 | 5 5 5 19 20 20 20 20 20 20 20 24 25 25 25 25 24 Most Carried 25 | . 5 5 7 10 10 12 20 20 20 20 25 22 25 24 25 25 Average Carried 18 | . 3 4 5 9 10 10 18 19 19 19 22 21 24 23 24 22 Final Capacity 25 | 5 5 5 20 20 20 20 20 20 20 20 25 25 25 25 25 5 Final Carried 25 | . 5 5 7 10 10 12 20 20 20 20 20 22 24 23 25 5 Class Distribution -------------------- 51% | Mutant 20% | Bothacker-Mutant 11% | Commander-Mutant 11% | Botlord-Mutant 3% | Bothacker-Skirmisher Dominant Class ---------------- Mutant | -10/Materials Mutant | -10/Mines Mutant | -9/Materials Mutant | -9/Mines Mutant | -9/Exiles Mutant | -8/Mines Mutant | -8/Materials Mutant | -8/Garrison Bothacker-Skirmisher | -8/Materials Bothacker-Mutant | -8/Garrison Bothacker-Mutant | -7/Factory Bothacker-Mutant | -7/Storage Bothacker-Mutant | -7/Garrison Botlord-Mutant | -6/Factory Commander-Mutant | -6/Garrison Commander-Mutant | -5/Factory Resources | -11 -10 -10 -9 -9 -9 -8 -8 -8 -8 -8 -7 -7 -7 -6 -6 -5 ----------- Run | Scr Mat Min Mat Min Exi Min Mat Gar Mat Gar Fac Sto Gar Fac Gar Fac Matter Collected 4432 | 152 76 199 168 167 . 10 135 456 234 423 284 246 766 . 647 469 Remotely . | . . . . . . . . . . . . . . . . . Salvage Created 4724 | . 59 185 385 48 . . 373 963 779 546 186 . 438 . 333 429 Parts 233 | . 6 14 29 7 . . 23 33 46 16 11 . 9 . 6 33 Haulers Intercepted 2 | . 1 . . . . . . . 1 . . . . . . . Recyclers Shooed 2 | . . . . . . . . . 1 . . . . . . 1 Parts Field Recycled . | . . . . . . . . . . . . . . . . . Retrieved Matter . | . . . . . . . . . . . . . . . . . Parts Self-Destructed . | . . . . . . . . . . . . . . . . . Prevented . | . . . . . . . . . . . . . . . . . Kills | -11 -10 -10 -9 -9 -9 -8 -8 -8 -8 -8 -7 -7 -7 -6 -6 -5 ------- Run | Scr Mat Min Mat Min Exi Min Mat Gar Mat Gar Fac Sto Gar Fac Gar Fac Combat Hostiles Destroyed 97 | . 2 7 12 3 . . 6 13 17 15 5 . 6 . 6 5 Melee 7 | . . . . . . . 2 . 3 2 . . . . . . Guns 20 | . 1 1 . . . . 4 2 6 5 . . . . . 1 Cannons 46 | . 1 6 7 3 . . . . 2 7 5 . 6 . 6 3 AOE 21 | . . . 5 . . . . 9 6 . . . . . . 1 Classes Destroyed 17 | . 3 3 2 1 . . . 1 1 1 3 . . . 1 1 Worker 2 | . . . . 1 . . . . . . . . . . . 1 Builder 6 | . . 1 . . . . 3 . 1 . . . . . . 1 Tunneler 2 | . . . 1 . . . . . . . . . . . . 1 Hauler 2 | . 1 . . . . . . . 1 . . . . . . . Recycler 1 | . . . . . . . . . . . . . . . . 1 Operator 5 | . 1 . . . . . . . 2 . 1 . . . . 1 Watcher 1 | . . . . . . . . . 1 . . . . . . . Swarmer 21 | . 2 3 2 3 . . . 3 7 1 . . . . . . Grunt 40 | . . 2 4 . . . 3 5 8 9 1 . 6 . 2 . Brawler 3 | . . . 1 . . . . . . . . . 1 . . 1 Duelist 1 | . . . . . . . . . . . 1 . . . . . Sentry 21 | . . 2 5 . . . 3 4 2 4 . . . . 1 . Specialist 1 | . . . . . . . . . . . 1 . . . . . Hunter 3 | . . . . . . . . . . 1 . . . . 1 1 Programmer 5 | . . . . . . . . 1 . . 1 . . . 1 2 Heavy 2 | . . . . . . . . . . . 1 . . . . 1 Behemoth 1 | . . . . . . . . . . . . . . . 1 . Thug 1 | . . . . . . . . . . . . . 1 . . . Savage 1 | . . . . . . . . . . . 1 . . . . . Best Kill Streak 6 | . 1 3 5 3 . . 3 3 6 4 3 . 2 . 3 3 Combat Bots Only 5 | . 1 3 5 3 . . 3 3 5 4 3 . 2 . 3 2 Max Kills in Single Turn 3 | . 1 2 3 1 . . 1 2 2 1 1 . 1 . 1 1 Gunslinging . | . . . . . . . . . . . . . . . . . Exploded 3 | . . . 3 . . . . 2 2 . . . . . . 1 Melee 1 | . . . . . . . 1 . 1 1 . . . . . . Uniques/NPCs Destroyed . | . . . . . . . . . . . . . . . . . Combat | -11 -10 -10 -9 -9 -9 -8 -8 -8 -8 -8 -7 -7 -7 -6 -6 -5 -------- Run | Scr Mat Min Mat Min Exi Min Mat Gar Mat Gar Fac Sto Gar Fac Gar Fac Damage Taken 9662 | . 286 377 294 751 . . 660 890 873 1174 1319 . 268 10 517 2243 Core 2101 | . 89 147 42 41 . . 92 128 136 93 309 . 17 . . 1007 Absorbed by Shields 1219 | . . . . . . . . . 184 136 6 . 102 10 316 465 Reduced by Siege Mode 138 | . . . . . . . . . . . . . . . 36 102 Redirected to Shielding 23 | . . . . . . . 23 . . . . . . . . . Regen/Repaired (Parts) 486 | . . . . . . . . . . . . 486 . . . . Core Remaining (%) 59 | 100 . 5 . . . 79 . . . 18 . . 53 . 100 . Volleys Fired 479 | . 26 26 15 8 . . 31 40 45 41 42 5 79 7 55 59 Largest 2 | . 1 2 2 2 . . 2 1 2 2 2 1 2 1 2 2 Hottest 126 | . 100 100 88 88 . . 120 60 104 64 96 5 126 65 126 126 Shots Fired 569 | . 26 35 26 16 . . 35 40 52 50 53 5 86 7 68 70 Gun 137 | . 21 7 . . . . 35 3 32 21 . . . . . 18 Cannon 284 | . . 24 22 16 . . . . 7 29 42 . 38 2 52 52 Launcher 54 | . . . 4 . . . . 37 13 . . . . . . . Special 94 | . 5 4 . . . . . . . . 11 5 48 5 16 . Kinetic 303 | . 21 4 22 16 . . . . 7 29 42 . 38 2 52 70 Thermal 127 | . 5 31 . . . . 35 3 32 21 . . . . . . Explosive 28 | . . . 4 . . . . 24 . . . . . . . . Electromagnetic 26 | . . . . . . . . 13 13 . . . . . . . Robot Hit Streak 20 | . 4 7 9 3 . . 17 13 11 10 12 17 19 4 19 20 Robot Miss Streak 13 | . 8 4 4 13 . . 1 2 3 3 2 . 2 1 4 5 Penetration Max 1 | . . . . . . . . . . . . . 1 . . 1 Secondary Targets . | . . . . . . . . . . . . . . . . . Shots Hit Robots 475 | . 12 20 22 14 . . 33 48 49 56 44 5 66 4 51 51 Core Hits 257 | . 7 14 29 17 . . 11 36 37 49 12 . 11 . 15 19 Critical Kills 1 | . . . . . . . . . . 1 . . . . . . Critical Parts Destroyed 1 | . . . . . . . . . . . . . . . . 1 Critical Strikes 13 | . . . . . . . . 1 2 1 . . 5 . 1 3 Burn 2 | . . . . . . . . . 2 . . . . . . . Destroy 1 | . . . . . . . . . . . . . . . . 1 Blast 8 | . . . . . . . . . . . . . 5 . 1 2 Smash 1 | . . . . . . . . . . 1 . . . . . . Sever 1 | . . . . . . . . 1 . . . . . . . . Melee Attacks 109 | . . . . . . . 12 37 30 18 1 . 11 . . . Impact 18 | . . . . . . . . . . 7 . . 11 . . . Slashing 79 | . . . . . . . 12 37 30 . . . . . . . Piercing . | . . . . . . . . . . . . . . . . . Sneak Attacks 5 | . . . . . . . 2 . 2 . 1 . . . . . Combat Hostiles . | . . . . . . . . . . . . . . . . . Follow-up Attacks . | . . . . . . . . . . . . . . . . . Damage Inflicted 13913 | . 171 388 541 212 . . 989 2728 1823 1173 986 . 1324 . 1475 2103 Guns 1984 | . 99 42 . . . . 586 68 449 250 . . . . . 490 Cannons 6648 | . . 298 331 212 . . . . 145 676 986 . 1087 . 1475 1438 Explosions 2307 | . . . 210 . . . . 1208 721 . . . . . . 168 Melee 2846 | . . . . . . . 403 1451 508 247 . . 237 . . . Ramming 8 | . . . . . . . . 1 . . . . . . . 7 Kinetic 7046 | . 99 107 331 212 . . . . 145 676 986 . 1087 . 1475 1928 Thermal 1938 | . 72 281 . . . . 586 68 513 250 . . . . . 168 Explosive 1197 | . . . 210 . . . . 987 . . . . . . . . Electromagnetic 878 | . . . . . . . . 221 657 . . . . . . . Impact 484 | . . . . . . . . . . 247 . . 237 . . . Slashing 2362 | . . . . . . . 403 1451 508 . . . . . . . Piercing . | . . . . . . . . . . . . . . . . . Highest Corruption 2 | . . . . . . . 1 1 2 2 . . . . . . Average Corruption 1 | . . . . . . . 1 1 1 2 . . . . . . Corruption Purged . | . . . . . . . . . . . . . . . . . Corruption Blocked . | . . . . . . . . . . . . . . . . . Effects 40 | . . . . . . . 1 6 16 17 . . . . . . Message Errors 9 | . . . . . . . 1 3 2 3 . . . . . . Matter Fused 9 | . . . . . . . . 1 6 2 . . . . . . Heat Flow Errors 5 | . . . . . . . . 1 . 4 . . . . . . Energy Discharges 5 | . . . . . . . . . 3 2 . . . . . . Data Loss (minor) 5 | . . . . . . . . . 3 2 . . . . . . Data Loss (major) 3 | . . . . . . . . 1 . 2 . . . . . . Misfires 3 | . . . . . . . . . 1 2 . . . . . . Weapon Failures 1 | . . . . . . . . . 1 . . . . . . . Overload Shots 24 | . . . . . . . 19 2 3 . . . . . . . Effects 1 | . . . . . . . 1 . . . . . . . . . Short Circuit 1 | . . . . . . . 1 . . . . . . . . . Overflow Damage 278 | . . . . . . . 56 7 74 34 . . 61 . 18 28 Projectiles 42 | . . . . . . . . . . . . . 17 . 18 7 Explosions 57 | . . . . . . . . 7 29 . . . . . . 21 Melee 179 | . . . . . . . 56 . 45 34 . . 44 . . . Knockbacks 50 | . . 1 4 4 . . . . . 15 2 . 11 . 2 11 Impact 3 | . . . . . . . . . . . . . 3 . . . Kinetic 42 | . . 1 4 4 . . . . . 13 2 . 6 . 2 10 Secondary 5 | . . . . . . . . . . 2 . . 2 . . 1 Self-Inflicted Damage 304 | . . . 18 . . . . 192 50 . . . . . . 44 Shots 13 | . . . 1 . . . . 7 4 . . . . . . 1 Rammed 2 | . . . . . . . . 1 . . . . . . . 1 Targets Rammed 2 | . . . . . . . . 1 . . . . . . . 1 Kicked . | . . . . . . . . . . . . . . . . . Crushed . | . . . . . . . . . . . . . . . . . Highest Temperature 822 | . 80 166 72 81 . . . 135 85 436 149 . 157 28 444 822 Average Temperature 95 | . 38 56 25 24 . . . 77 25 113 60 . 41 16 130 251 Received Heat Transfer 2918 | . . 192 153 20 . . 315 198 402 567 225 . 68 4 112 662 Effects 17 | . . . . . . . . . . 5 . . . . . 12 Shutdowns 2 | . . . . . . . . . . 1 . . . . . 1 Energy Bleed 3 | . . . . . . . . . . 1 . . . . . 2 Interference 4 | . . . . . . . . . . 1 . . . . . 3 Matter Decay 2 | . . . . . . . . . . 2 . . . . . . Short Circuit 2 | . . . . . . . . . . . . . . . . 2 Damage (major) 1 | . . . . . . . . . . . . . . . . 1 Damage (core) 3 | . . . . . . . . . . . . . . . . 3 Siege Activations 7 | . . . . . . . . . . . . . 1 . 2 4 Total Turns 135 | . . . . . . . . . . . . . 3 . 36 96 Longest Duration 51 | . . . . . . . . . . . . . 3 . 30 51 Robots Corrupted 2 | . . . . . . . . 2 . . . . . . . . Combat Hostiles 2 | . . . . . . . . 2 . . . . . . . . Parts Fried 5 | . . . . . . . . 2 3 . . . . . . . Impact Corruptions 3 | . . . . . . . . . . 1 . . 2 . . . Robots Melted . | . . . . . . . . . . . . . . . . . Combat Hostiles . | . . . . . . . . . . . . . . . . . Parts Melted 3 | . . . . . . . 1 . 2 . . . . . . . Heat Transferred 3360 | . 150 607 . . . . 905 87 1049 462 . . . . . 100 Parts Sabotaged . | . . . . . . . . . . . . . . . . . Parts Stolen . | . . . . . . . . . . . . . . . . . Parts Stripped . | . . . . . . . . . . . . . . . . . Power Chain Reactions 1 | . . . . . . . . . 1 . . . . . . . Missiles Intercepted . | . . . . . . . . . . . . . . . . . Alert | -11 -10 -10 -9 -9 -9 -8 -8 -8 -8 -8 -7 -7 -7 -6 -6 -5 ------- Run | Scr Mat Min Mat Min Exi Min Mat Gar Mat Gar Fac Sto Gar Fac Gar Fac Peak Influence 997 | . 83 127 586 225 . . 120 852 635 772 650 375 788 430 893 997 Initial 468 | . . 31 21 150 . . . 3 415 189 405 271 243 413 47 468 Average 340 | . 30 37 256 175 . . 43 405 404 478 500 319 360 201 595 638 Maximum Alert Level 3 | . . . 2 1 . . . 3 2 2 2 1 3 2 3 3 Low Security (%) 33 | 100 100 100 47 23 . 100 100 24 13 3 . . 11 59 15 . Level 1 23 | . . . 33 76 . . . 24 26 25 . 100 57 2 1 . Level 2 32 | . . . 19 . . . . 37 60 71 100 . 22 37 34 66 Level 3 10 | . . . . . . . . 14 . . . . 8 . 47 33 Level 4 . | . . . . . . . . . . . . . . . . . Level 5 . | . . . . . . . . . . . . . . . . . High Security . | . . . . . . . . . . . . . . . . . Max Security . | . . . . . . . . . . . . . . . . . Squads Dispatched 18 | . 1 1 . . . . 1 . 3 . 8 1 . 1 . 2 Investigation 1 | . . 1 . . . . . . . . . . . . . . Extermination 4 | . . . . . . . . . . . 2 1 . . . 1 Reinforcement 11 | . 1 . . . . . 1 . 3 . 4 . . 1 . 1 Assault 2 | . . . . . . . . . . . 2 . . . . . Garrison . | . . . . . . . . . . . . . . . . . Intercept . | . . . . . . . . . . . . . . . . . Searches Triggered . | . . . . . . . . . . . . . . . . . Construction Impeded 2 | . . . . . . . 1 . 1 . . . . . . . Haulers Reinforced . | . . . . . . . . . . . . . . . . . Active Scanning Responses . | . . . . . . . . . . . . . . . . . Cargo Convoy Interrupts . | . . . . . . . . . . . . . . . . . Stealth | -11 -10 -10 -9 -9 -9 -8 -8 -8 -8 -8 -7 -7 -7 -6 -6 -5 --------- Run | Scr Mat Min Mat Min Exi Min Mat Gar Mat Gar Fac Sto Gar Fac Gar Fac Distress Signals 10 | . . . 2 . . . 2 . 5 . . 1 . . . . Communications Jammed 4 | . . . . . . . . . . . . . . . . 4 Distress Signals 2 | . . . . . . . . . . . . . . . . 2 Times Spotted 246 | . 7 8 17 10 . . 12 23 25 29 24 7 31 4 26 23 Peak Tracking Total 11 | . 3 3 7 11 . . 3 6 5 5 9 4 4 3 4 9 Tactical Retreats 11 | . . 1 . . . . 1 . 2 4 . . 2 . . 1 Traps | -11 -10 -10 -9 -9 -9 -8 -8 -8 -8 -8 -7 -7 -7 -6 -6 -5 ------- Run | Scr Mat Min Mat Min Exi Min Mat Gar Mat Gar Fac Sto Gar Fac Gar Fac Traps Triggered 5 | . . . . . . . 1 . . 3 . . . . 1 . Indirectly . | . . . . . . . . . . . . . . . . . Trap Hack Attempts . | . . . . . . . . . . . . . . . . . Triggered . | . . . . . . . . . . . . . . . . . Disarmed . | . . . . . . . . . . . . . . . . . Reprogrammed . | . . . . . . . . . . . . . . . . . Reused . | . . . . . . . . . . . . . . . . . Traps Extracted . | . . . . . . . . . . . . . . . . . Installed . | . . . . . . . . . . . . . . . . . Triggered . | . . . . . . . . . . . . . . . . . Machines | -11 -10 -10 -9 -9 -9 -8 -8 -8 -8 -8 -7 -7 -7 -6 -6 -5 ---------- Run | Scr Mat Min Mat Min Exi Min Mat Gar Mat Gar Fac Sto Gar Fac Gar Fac Machines Disabled 44 | . . . 2 . . . 1 8 2 2 6 . 7 . 5 11 Max in Single Turn 4 | . . . 1 . . . 1 2 1 1 . . 1 . 1 4 Garrison Relay 14 | . . . . . . . . 3 . 3 . . 4 . 4 . Machines Sabotaged . | . . . . . . . . . . . . . . . . . Garrisons Compromised . | . . . . . . . . . . . . . . . . . Overloaded Fab Kills . | . . . . . . . . . . . . . . . . . Hacking | -11 -10 -10 -9 -9 -9 -8 -8 -8 -8 -8 -7 -7 -7 -6 -6 -5 --------- Run | Scr Mat Min Mat Min Exi Min Mat Gar Mat Gar Fac Sto Gar Fac Gar Fac Machines Accessed 42 | . 1 2 4 . . . 8 2 4 3 3 6 3 1 2 3 Terminals 33 | . 1 1 2 . . . 7 2 3 3 3 4 3 . 2 2 Fabricators . | . . . . . . . . . . . . . . . . . Repair Stations 2 | . . . . . . . . . . . . 1 . . . 1 Recycling Units . | . . . . . . . . . . . . . . . . . Scanalyzers 2 | . . . 2 . . . . . . . . . . . . . Garrison Access 4 | . . . . . . . 1 . 1 . . 1 . 1 . . Total Hacks 102 | . 3 2 17 . . . 22 4 13 6 7 9 4 1 3 11 Successful 55 | . 1 2 13 . . . 9 4 5 2 3 5 3 1 1 6 Failed 47 | . 2 . 4 . . . 13 . 8 4 4 4 1 . 2 5 Catastrophic 8 | . . . 2 . . . 2 . 1 . . 2 . . . 1 Database Lockouts . | . . . . . . . . . . . . . . . . . Manual 47 | . 1 1 3 . 1 . 15 2 7 . 4 5 . . . 8 Terminals 82 | . 3 1 6 . . . 20 4 12 6 7 6 4 . 3 10 Fabricators . | . . . . . . . . . . . . . . . . . Repair Stations 3 | . . . . . . . . . . . . 2 . . . 1 Recycling Units . | . . . . . . . . . . . . . . . . . Scanalyzers 11 | . . . 11 . . . . . . . . . . . . . Garrison Access 5 | . . . . . . . 2 . 1 . . 1 . 1 . . Terminal Hacks 26 | . 1 2 3 . . . 5 2 2 2 1 1 3 . 1 3 Prototype ID Bank 1 | . . . 1 . . . . . . . . . . . . . Open Door 5 | . . 1 . . . . . . . 1 . 1 1 . 1 . Branch Access Points 1 | . . . 1 . . . . . . . . . . . . . Emergency Access Points 3 | . . . . . . . 1 1 . . . . 1 . . . Alert Level 1 | . . . . . . . 1 . . . . . . . . . Unreport Threat 6 | . . 1 . . . . 2 . 2 . . . . . . 1 Locate Traps 3 | . . . . . . . 1 . . . . . . . . 2 Security Status 1 | . 1 . . . . . . . . . . . . . . . Recall Reinforcements 1 | . . . . . . . . . . . 1 . . . . . Zone Layout 1 | . . . 1 . . . . . . . . . . . . . Garrison Registry 1 | . . . . . . . . . . . . . 1 . . . Security Stations 2 | . . . . . . . . 1 . 1 . . . . . . Fabricator Hacks . | . . . . . . . . . . . . . . . . . Repair Station Hacks 2 | . . . . . . . . . . . . 2 . . . . Scan Component 1 | . . . . . . . . . . . . 1 . . . . Repair 1 | . . . . . . . . . . . . 1 . . . . Recycling Unit Hacks . | . . . . . . . . . . . . . . . . . Scanalyzer 10 | . . . 10 . . . . . . . . . . . . . Insert Component 5 | . . . 5 . . . . . . . . . . . . . Analyze 5 | . . . 5 . . . . . . . . . . . . . Garrison Access Hacks 4 | . . . . . . . 1 . 1 . . 1 . 1 . . Unlock Access 4 | . . . . . . . 1 . 1 . . 1 . 1 . . Unauthorized Hacks 13 | . . . . . . . 3 2 2 . 2 1 . . . 3 Terminals 13 | . . . . . . . 3 2 2 . 2 1 . . . 3 Track 1 | . . . . . . . . 1 . . . . . . . . Botnet 9 | . . . . . . . 2 1 1 . 2 1 . . . 2 Operators 3 | . . . . . . . 1 . 1 . . . . . . 1 Fabricators . | . . . . . . . . . . . . . . . . . Repair Stations . | . . . . . . . . . . . . . . . . . Recycling Units . | . . . . . . . . . . . . . . . . . Scanalyzers . | . . . . . . . . . . . . . . . . . Garrison Access . | . . . . . . . . . . . . . . . . . Data Cores Recovered 2 | . . . . . . . . . 1 . . . . . . 1 Used 1 | . . . . . . . . . . . . . . . . 1 Hacking Detections 30 | . 1 . 4 . . . 6 1 3 3 2 3 3 . 1 3 Full Trace Events 2 | . . . 2 . . . . . . . . . . . . . Feedback Events . | . . . . . . . . . . . . . . . . . Feedback Blocked . | . . . . . . . . . . . . . . . . . Robot Schematics Acquired . | . . . . . . . . . . . . . . . . . Robots Built . | . . . . . . . . . . . . . . . . . Authchips . | . . . . . . . . . . . . . . . . . Time . | . . . . . . . . . . . . . . . . . Total Robot Build Rating . | . . . . . . . . . . . . . . . . . Part Schematics Acquired 4 | . . . 4 . . . . . . . . . . . . . Parts Built . | . . . . . . . . . . . . . . . . . Authchips . | . . . . . . . . . . . . . . . . . Time . | . . . . . . . . . . . . . . . . . Total Part Build Rating . | . . . . . . . . . . . . . . . . . Parts Repaired 1 | . . . . . . . . . . . . 1 . . . . Time 62 | . . . . . . . . . . . . 62 . . . . Parts Recycled . | . . . . . . . . . . . . . . . . . Recycled Matter . | . . . . . . . . . . . . . . . . . Retrieved Matter . | . . . . . . . . . . . . . . . . . Retrieved Components . | . . . . . . . . . . . . . . . . . Parts Scanalyzed 4 | . . . 4 . . . . . . . . . . . . . Part Schematics Acquired 4 | . . . 4 . . . . . . . . . . . . . Parts Damaged . | . . . . . . . . . . . . . . . . . Bothacking | -11 -10 -10 -9 -9 -9 -8 -8 -8 -8 -8 -7 -7 -7 -6 -6 -5 ------------ Run | Scr Mat Min Mat Min Exi Min Mat Gar Mat Gar Fac Sto Gar Fac Gar Fac Used RIF Installer 5 | . . . . . . . . 1 . 2 . . 1 . 1 . Patrol Navigation 1 | . . . . . . . . . . . . . . . 1 . Structural Interface 1 | . . . . . . . . . . 1 . . . . . . Program Shield 1 | . . . . . . . . . . 1 . . . . . . Autoassimilate 1 | . . . . . . . . . . . . . 1 . . . Robots Hacked 36 | . . . . . . . . . . 6 11 5 9 1 4 . Non-combat 9 | . . . . . . . . . . . 4 3 1 1 . . Combat 27 | . . . . . . . . . . 6 7 2 8 . 4 . Autoassimilated 2 | . . . . . . . . . . . . . 2 . . . Robot Hacks Applied 42 | . . . . . . . . . . 8 11 5 10 4 4 . drop_inventory 1 | . . . . . . . . . . . . 1 . . . . ignore_parts 1 | . . . . . . . . . . . . 1 . . . . purge_threat 6 | . . . . . . . . . . . . . 3 3 . . find_shortcuts 1 | . . . . . . . . . . . . . 1 . . . disable_weapons 1 | . . . . . . . . . . . . . 1 . . . overwrite_iff 8 | . . . . . . . . . . 4 4 . . . . . formatsys_low 6 | . . . . . . . . . . . 3 1 1 1 . . formatsys_high 18 | . . . . . . . . . . 4 4 2 4 . 4 . Relay Couplers Released 57 | . . . . . . . . 13 . 12 . . 15 . 17 . Machine Destruction 54 | . . . . . . . . 10 . 12 . . 15 . 17 . Programmers 3 | . . . . . . . . 3 . . . . . . . . Attached 18 | . . . . . . . . . . 4 5 1 5 1 2 . Fabnet Peak Effective % . | . . . . . . . . . . . . . . . . . Robots Rewired 20 | . . . . . . . . 2 . 2 . . 12 . 4 . Allies Hacked . | . . . . . . . . . . . . . . . . . Hacks Repelled . | . . . . . . . . . . . . . . . . . Allies | -11 -10 -10 -9 -9 -9 -8 -8 -8 -8 -8 -7 -7 -7 -6 -6 -5 -------- Run | Scr Mat Min Mat Min Exi Min Mat Gar Mat Gar Fac Sto Gar Fac Gar Fac Total Allies 63 | . . . . . . . . 2 . 8 11 13 20 1 8 . Largest Group 15 | . . . . . . . . 2 1 2 5 14 11 11 15 5 Highest-Rated Group 428 | . . . . . . . . 51 31 59 115 275 285 311 428 237 Highest-Rated Ally 116 | . . . . . . . . 31 31 39 40 40 40 40 116 116 Total Orders 24 | . . . . . . . . . . 2 . 5 6 2 7 2 STAY 9 | . . . . . . . . . . 1 . 3 2 1 2 . FOLLOW 9 | . . . . . . . . . . 1 . 2 2 1 3 . AID 4 | . . . . . . . . . . . . . . . 2 2 EXPLORE 2 | . . . . . . . . . . . . . 2 . . . Ally Attacks 406 | . . . . . . . . 28 5 31 49 27 140 8 85 33 Total Damage 8684 | . . . . . . . . 482 41 339 963 417 2286 195 2253 1708 Kills 78 | . . . . . . . . 5 . 5 9 5 23 1 19 11 Allies Corrupted . | . . . . . . . . . . . . . . . . . Allies Melted . | . . . . . . . . . . . . . . . . . Intel | -11 -10 -10 -9 -9 -9 -8 -8 -8 -8 -8 -7 -7 -7 -6 -6 -5 ------- Run | Scr Mat Min Mat Min Exi Min Mat Gar Mat Gar Fac Sto Gar Fac Gar Fac Robot Analysis Total . | . . . . . . . . . . . . . . . . . Derelict Logs Recovered 3 | . . 2 . 1 . . . . . . . . . . . . Drone Launches 2 | . . . . . . . . . . . . . 2 . . . Drone Recoveries . | . . . . . . . . . . . . . . . . . Exploration | -11 -10 -10 -9 -9 -9 -8 -8 -8 -8 -8 -7 -7 -7 -6 -6 -5 ------------- Run | Scr Mat Min Mat Min Exi Min Mat Gar Mat Gar Fac Sto Gar Fac Gar Fac Turns Passed 12047 | 32 228 762 541 499 339 602 1030 1090 1136 1200 553 393 1506 79 1553 504 Spaces Moved 6351 | 27 157 572 284 296 215 362 629 553 545 597 258 157 740 38 733 188 Core 133 | 3 . 120 . . . . . . . . . . . . . 10 Treads 5172 | . . 222 284 296 215 362 143 474 475 597 258 157 740 38 733 178 Legs . | . . . . . . . . . . . . . . . . . Wheels 921 | 24 157 105 . . . . 486 79 70 . . . . . . . Hover . | . . . . . . . . . . . . . . . . . Flight 125 | . . 125 . . . . . . . . . . . . . . Fastest Speed 37 | 50 100 37 157 158 158 158 110 115 150 165 152 152 160 165 165 50 Average Speed 156 | 94 100 114 169 158 158 158 137 153 161 165 163 197 168 165 178 160 Slowest Speed 410 | 100 100 170 237 158 158 158 410 160 240 165 165 240 240 165 245 245 Overloaded Moves . | . . . . . . . . . . . . . . . . . Propulsion Burnouts . | . . . . . . . . . . . . . . . . . Robots Hopped . | . . . . . . . . . . . . . . . . . Cave-ins Triggered . | . . . . . . . . . . . . . . . . . Time Travels 1 | . . . . . 1 . . . . . . . . . . . Exploration Rate (%) 49 | 3 39 98 39 73 60 58 50 64 54 66 12 28 95 2 89 10 Regions Visited 16 Branch Regions 5 Pre-discovered Areas . | . . . . . . . . . . . . . . . . . Known Exits Taken 6 | . . . 1 . . 1 1 . 1 . . 1 . 1 . . Unknown Exits Taken 6 | 1 1 1 . 1 1 . . . . . 1 . . . . . Scrap Searched 5 | . . 2 . 2 . 1 . . . . . . . . . . Spaces Dug 60 | . . . 7 . . . 10 24 7 . . . 5 2 . 5 Terrain Destroyed 295 | . 2 2 37 . . . 12 143 13 . 7 . 9 2 6 62 Melee 11 | . . . . . . . 1 . 6 . . . 4 . . . Projectile 52 | . 2 2 . . . . 11 . 3 . 7 . 5 2 6 14 AOE 232 | . . . 37 . . . . 143 4 . . . . . . 48 Terrain Rammed . | . . . . . . . . . . . . . . . . . Walls Destroyed . | . . . . . . . . . . . . . . . . . Machines Disabled . | . . . . . . . . . . . . . . . . . Actions | -11 -10 -10 -9 -9 -9 -8 -8 -8 -8 -8 -7 -7 -7 -6 -6 -5 --------- Run | Scr Mat Min Mat Min Exi Min Mat Gar Mat Gar Fac Sto Gar Fac Gar Fac Total 7780 | 31 194 637 316 311 214 392 741 701 705 754 339 236 922 49 916 322 Wait 431 | . 1 13 11 . . 29 34 2 61 41 9 69 20 . 78 63 Move 6338 | 26 156 571 283 295 214 361 629 553 544 596 257 156 739 38 732 188 Hop . | . . . . . . . . . . . . . . . . . Pick Up 113 | . 6 6 1 5 . 2 9 14 8 13 7 3 23 1 13 2 Fast Attach 59 | 5 2 9 3 1 . . 13 4 5 1 4 2 6 . 2 2 Attach 35 | . . 3 . 2 . . 1 2 3 8 6 . 2 2 4 2 Detach 8 | . . . 1 . . . 3 . . . 2 . . . 2 . Swap 59 | . 2 1 2 . . . 2 3 3 8 8 1 18 1 9 1 Drop 83 | . 1 8 . . . . 7 16 6 7 3 . 22 . 9 4 Fire 479 | . 26 26 15 8 . . 31 40 45 41 42 5 79 7 55 59 Melee 109 | . . . . . . . 12 37 30 18 1 . 11 . . . Ram 1 | . . . . . . . . . . . . . . . . 1 Kick . | . . . . . . . . . . . . . . . . . Crush . | . . . . . . . . . . . . . . . . . Escape Stasis 2 | . . . . . . . . . . . . . 2 . . . Rewire 63 | . . . . . . . . 30 . 21 . . . . 12 . Trap . | . . . . . . . . . . . . . . . . . Miscellaneous . | . . . . . . . . . . . . . . . . . Route ------- -11/Scrapyard -10/Materials -10/Mines (discovered 2 exits: *Mat x2) -9/Materials (discovered 3 exits: *Mat x2 / *Min) -9/Mines (discovered 2 exits: *Mat / *Exi) -9/Exiles -8/Mines -8/Materials (discovered 3 exits: *Fac x2 / Gar) -8/Garrison (discovered 2 exits: *Mat x2) -8/Materials (discovered 3 exits: *Fac x2 / Gar) -8/Garrison -7/Factory -7/Storage -7/Garrison (discovered 3 exits: *Fac x3) -6/Factory -6/Garrison (discovered 3 exits: *Fac x3) -5/Factory History --------- Turn | Location | Event 13 | -11/Scrapyard | Discovered new exit (range 16) 33 | -11/Scrapyard | Entered Materials 215 | -10/Materials | Discovered new exit (range 12) 261 | -10/Materials | Entered Mines 317 | -10/Mines | Build established: Mutant 354 | -10/Mines | Learned Materials garrison access intel 390 | -10/Mines | Core integrity fell below 50% 424 | -10/Mines | Lost 5 parts (1p2n2w) 532 | -10/Mines | Core integrity fell below 20% 598 | -10/Mines | Discovered new exit (range 8) 641 | -10/Mines | Met a Derelict shopkeep closing up shop 738 | -10/Mines | Received a Rocket Launcher from a helpful Derelict 779 | -10/Mines | Learned 2 Materials zone layouts 787 | -10/Mines | Found a hidden stash of uninstalled traps 797 | -10/Mines | Discovered new exit (range 7) 997 | -10/Mines | Joined a pair of Derelicts in attacking an 0b10 outpost 1023 | -10/Mines | Entered Materials 1023 | -9/Materials | Evolved 2 slots: Propulsion x1, Utility x1 1024 | -9/Materials | Identified exit to Materials 1228 | -9/Materials | Identified exit to Mines 1455 | -9/Materials | Discovered exit to Materials (range 11) 1564 | -9/Materials | Entered Mines 1624 | -9/Mines | A weapon hastily lodged in a ceiling crevice suddenly fell to the ground 1786 | -9/Mines | Discovered exit to Materials (range 8) 1895 | -9/Mines | Learned Materials terminal intel 1898 | -9/Mines | Assembled infested the area 1974 | -9/Mines | Met 8R-AWN 1986 | -9/Mines | Lost 5 parts (1p2u2w) 2057 | -9/Mines | Discovered new exit (range 5) 2063 | -9/Mines | Entered Exiles 2101 | -9/Exiles | Welcomed by 8R-AWN 2128 | -9/Exiles | Met EX-HEX 2173 | -9/Exiles | Met EX-BIN 2195 | -9/Exiles | Aligned with FarCom system 2196 | -9/Exiles | Given EX-Vault access code 2233 | -9/Exiles | Opened EX-Vault 2239 | -9/Exiles | Found Prototype Device 2239 | -9/Exiles | Identified Chronowheel 2239 | -9/Exiles | Activated Chronowheel 2239 | -9/Exiles | Spacetime reconverged on an earlier point 2269 | -9/Exiles | Warned to stay clear of 0b10 Research branches 2315 | -9/Exiles | Met EX-DEC 2383 | -9/Exiles | Discovered new exit (range 14) 2402 | -9/Exiles | Entered Mines 2824 | -8/Mines | Discovered exit to Materials (range 11) 3004 | -8/Mines | Entered Materials 3004 | -8/Materials | Evolved 2 slots: Utility x2 3005 | -8/Materials | Loaded intel: 12 terminal locations 3006 | -8/Materials | Loaded intel: 1 garrison access location 3422 | -8/Materials | Discovered new exit (range 5) 3779 | -8/Materials | Discovered new exit (range 11) 4034 | -8/Materials | Identified exit to Garrison 4034 | -8/Materials | Entered Garrison 4048 | -8/Garrison | Installed Relay Interface Framework 4090 | -8/Garrison | Triggered checkpoint 4226 | -8/Garrison | Triggered checkpoint 4272 | -8/Garrison | Learned Materials security intel 4293 | -8/Garrison | Triggered checkpoint 4325 | -8/Garrison | Garrison Relay disabled 4480 | -8/Garrison | Garrison Relay disabled 4558 | -8/Garrison | Triggered checkpoint 4698 | -8/Garrison | Discovered new exit (range 14) 4821 | -8/Garrison | Garrison Relay disabled 4888 | -8/Garrison | Triggered checkpoint 4989 | -8/Garrison | Triggered checkpoint 5083 | -8/Garrison | Discovered new exit (range 15) 5124 | -8/Garrison | Entered Materials 5124 | -8/Materials | Accompanied by 1 ally 5490 | -8/Materials | Core integrity fell below 50% 5516 | -8/Materials | Discovered new exit (range 16) 5899 | -8/Materials | Build established: Bothacker-Skirmisher 5998 | -8/Materials | Discovered new exit (range 9) 6199 | -8/Materials | Identified exit to Garrison 6260 | -8/Materials | Entered Garrison 6294 | -8/Garrison | Triggered checkpoint 6383 | -8/Garrison | Build established: Bothacker-Mutant 6384 | -8/Garrison | Expanded RIF knowledge: Structural Interface 6396 | -8/Garrison | Garrison Relay disabled 6448 | -8/Garrison | Learned Factory security intel 6704 | -8/Garrison | Triggered checkpoint 6806 | -8/Garrison | Triggered checkpoint 6808 | -8/Garrison | Garrison Relay disabled 6956 | -8/Garrison | Lost 3 parts (1u2w) 7076 | -8/Garrison | Triggered checkpoint 7175 | -8/Garrison | Expanded RIF knowledge: Program Shield 7191 | -8/Garrison | Core integrity fell below 20% 7219 | -8/Garrison | Build established: Mutant 7252 | -8/Garrison | Triggered checkpoint 7287 | -8/Garrison | Garrison Relay disabled 7353 | -8/Garrison | Discovered new exit (range 12) 7460 | -8/Garrison | Entered Factory 7460 | -7/Factory | Accompanied by 2 allies 7460 | -7/Factory | Evolved 2 slots: Propulsion x1, Utility x1 7856 | -7/Factory | Build established: Bothacker-Mutant 7860 | -7/Factory | First assault squad dispatched 7945 | -7/Factory | Discovered new exit (range 8) 8013 | -7/Factory | Entered Storage 8013 | -7/Storage | Accompanied by 3 allies 8017 | -7/Storage | Lost 6 parts (1p2n2u1w) 8099 | -7/Storage | Repaired Imp. Heavy Treads 8150 | -7/Storage | Assisted by bots powering up and referring to "LRC-V3" 8380 | -7/Storage | Identified exit to Garrison 8406 | -7/Storage | Entered Garrison 8406 | -7/Garrison | Accompanied by 11 allies 8416 | -7/Garrison | Spotted B-75 Beast 8427 | -7/Garrison | Allies destroyed B-75 Beast 8660 | -7/Garrison | Triggered checkpoint 8672 | -7/Garrison | Heavy support dispatched to Factory 8701 | -7/Garrison | Garrison Relay disabled 8752 | -7/Garrison | Discovered new exit (range 15) 9026 | -7/Garrison | Triggered checkpoint 9130 | -7/Garrison | Triggered checkpoint 9224 | -7/Garrison | Expanded RIF knowledge: Autoassimilate 9226 | -7/Garrison | Triggered checkpoint 9226 | -7/Garrison | Triggered checkpoint 9393 | -7/Garrison | Garrison Relay disabled 9494 | -7/Garrison | Garrison Relay disabled 9519 | -7/Garrison | Build established: Botlord-Mutant 9550 | -7/Garrison | Discovered new exit (range 14) 9614 | -7/Garrison | Triggered checkpoint 9719 | -7/Garrison | Rescued a captive Derelict 9741 | -7/Garrison | Discovered new exit (range 12) 9748 | -7/Garrison | Triggered checkpoint 9770 | -7/Garrison | Triggered checkpoint 9782 | -7/Garrison | Garrison Relay disabled 9854 | -7/Garrison | Discovered new exit (range 46) 9854 | -7/Garrison | Discovered new exit (range 87) 9854 | -7/Garrison | Discovered new exit (range 12) 9912 | -7/Garrison | Entered Factory 9912 | -6/Factory | Accompanied by 10 allies 9912 | -6/Factory | Evolved 2 slots: Utility x2 9991 | -6/Factory | Identified exit to Garrison 9991 | -6/Factory | Entered Garrison 9991 | -6/Garrison | Accompanied by 10 allies 10124 | -6/Garrison | Triggered checkpoint 10143 | -6/Garrison | Garrison Relay disabled 10210 | -6/Garrison | Triggered checkpoint 10222 | -6/Garrison | Triggered checkpoint 10242 | -6/Garrison | Triggered checkpoint 10260 | -6/Garrison | Triggered checkpoint 10410 | -6/Garrison | Discovered new exit (range 10) 10470 | -6/Garrison | Triggered checkpoint 10483 | -6/Garrison | Garrison Relay disabled 10736 | -6/Garrison | Expanded RIF knowledge: Patrol Navigation 10776 | -6/Garrison | Discovered new exit (range 10) 10780 | -6/Garrison | Triggered checkpoint 10806 | -6/Garrison | Garrison Relay disabled 10859 | -6/Garrison | Spotted B-90 Cyclops 10860 | -6/Garrison | Build established: Commander-Mutant 10905 | -6/Garrison | Destroyed B-90 Cyclops 10974 | -6/Garrison | Rewired B-86 Titan 11287 | -6/Garrison | Garrison Relay disabled 11356 | -6/Garrison | Discovered new exit (range 15) 11544 | -6/Garrison | Entered Factory 11544 | -5/Factory | Accompanied by 5 allies 11544 | -5/Factory | Evolved 2 slots: Utility x2 12040 | -5/Factory | P-70 Sage assimilated allied Titan 5a 12040 | -5/Factory | Released all parts (14) 12041 | -5/Factory | Spotted Titan 5a 12045 | -5/Factory | Core integrity fell below 50% 12048 | -5/Factory | Core integrity fell below 20% 12048 | -5/Factory | Destroyed by P-70 Sage with Tesla Rifle Last Messages --------------- 12040_ Released Huge Storage Unit. 12040_ Released Broken Imp. Heavy Treads. 12040_ Released Graphene Brace. 12040_ Released Lyr. Heavy Armor Plating. 12040_ Released Hvy. Gauss Cannon. 12040_ Dropped Relay Coupler [Grunt]. 12041_ R-10 Processor collects Lyr. Heavy Armor Plating. 12041_ Angel 4a destroyed. 12042_ Acquired Huge Storage Unit. 12043_ Overheating: Energy bleed (-25). 12043_ Dropped Relay Coupler [Swarmer]. 12045_ Overheating: Core damaged (-150). 12045_ Titan 5a reactivates. 12045_ U-05 Engineer lays Concrete. 12045_ K-01 Serf collects debris. 12045_ Acquired Hvy. Gauss Cannon. 12046_ Penetrated by Slug. 12046_ U-05 Engineer builds a Wall. 12048_ Overheating: Core damaged (-120). 12048_ Slammed into R-10 Processor. Map ----- +----------------------------------------------------+ | ?????????????????????????????????????????????????? | | ?????????????????????????????????????????????????? | | ?????????????????????????????????????????????????? | | ?????????????????????????????????????????????????? | | ?????????????????????????????????????????????????? | | ?????????????????????????????????????????????????? | | ?????????????????????????????????????????????????? | | ?????????????????????????????????????????????????? | | ?????????????????????????????????????????????????? | | ?????????????????????????????????????????????????? | | ?????????????????????????????????????????????????? | | ????????????????????????#????##??????????????????? | | ????????????????????????# ##?? ?????????? ??????? | | ????????????gg????????### # ?? ##########+####### | | ??????????????????????# " "###### | | ?????????????????????#### " | | ????????????????g????H % = k "% | | ?????????????????????####### % "% | | ???????????????????????????# """"" %%"" | | ??????????????########?????# """""" "" | | ??????????????? ????# ] % % """""" % " | | ????????????????? ?####u% """""" " | | ??????????????????? # u % % | | ??????????????? ???? # o k | | ??????????????? R % u% | | ?????????????? #@ %] u % % | | ?????????????? # ! u % #### | | ?????????????# # %%x! uu % % #??? | | ?????????????# # =[!x########### ###??? | | ?????????????# # !!%!#######???# #????? | | ?????????????# | % #!!=]*#?????????# #????? | | ?????????????# % # !!!!#?????????# #????? | | ????????????? = # !!!!#?????????# #????? | | ????????????? # !!!!#?????????# #????? | | ?????????????? # !!#?????????# #????? | | ??????????????##### ### # !#?????????# #????? | | ??????????????????#### # =*#?????????" #????? | | ?????????????????????# ## BB!%#?????????# #????? | | ?????????????????????# ?#pBBgg#????????? ????? | | ?????????????????????#??# #?????????? % ?????? | | ????????????????????????# Y #??????????????????? | | ???????????????????????? g ??????????????????? | | ???????????????????????? b ??????????????????? | | ??????????????????????? ??????????????????? | | ??????????????????????? ??????????????????? | | ?????????????????????? ??????????????????? | | ????????????????????????? ??????????????????? | | ??????????????????????????? ???????????????????? | | ?????????????????????????????????????????????????? | | ?????????????????????????????????????????????????? | +----------------------------------------------------+ Best States ------------- Heat Dissipation 40 Energy Generation 19 Energy Capacity 310 Matter Stores 300 Matter Capacity 300 Sight Range 16 Terrain Scan Range 14 Terrain Scan Density 10 Jamming Range 16 Additional Mass Support 12 Base Temperature (-) 200 EM Shielding 3 Armor Coverage 1200 Resistance: KI 20 Resistance: TH 15 Utility Shielding 66 Evasion (%) 62 Targeting Accuracy 8 Recoil Reduction 4 Particle Charging 15 Kinecelleration 30 Offensive Hacking 10 Defensive Hacking 12 Relay Coupler Types 3 Relay Coupler Value 73 Item Schematics ----------------- Huge Storage Unit | -9/Materials | Scanalyzed Hacking Suite | -9/Materials | Scanalyzed Targeting Computer | -9/Materials | Scanalyzed Scythe | -9/Materials | Scanalyzed Robot Schematics ------------------ None Fabricated ------------ Nothing Alien Tech Used ----------------- None Achievements -------------- None Challenges ------------ None Game ------ Seed TerrabombHellfireSlayer Manual? 0 Play Time 02:38:02 Cumulative 285.9 hours Start 2022.07.18 @ 00:15:32 End 2022.07.18 @ 16:10:50 Sessions 3 Manual Loads 0 Difficulty Rogue Special Mode None Game No. 140 Rogue 136 Adventurer 0 Explorer 4 Win Type - Total 16 Types 4/0/2/4/1/2/3/0/0 Lore% 77 Gallery% 82 Achievement% 74 Wizard Run 0 Options --------- ASCII 0 Keyboard 0 Movement Mouse Keybinds 0 Fullscreen 1 Font 18/SmallcapsGlow Map View 76x50 Tactical HUD 1 Map Filters NONE Filters NONE Steam 1 RUN: 57a61713-6e95-4f4e-8c60-680c9f1a4ed1